bitfinex/quotes_ETHUSD_20241217
["timestamp","ask_amount","ask_price","bid_price","bid_amount"]
[1734396358217,0.23166366,3957.3,3955.7,0.7637]
[1734396358414,0.23166366,3957.2,3955.7,0.7637]
[1734396358616,0.23166366,3957.1,3955.7,0.7637]
[1734396358818,0.23166366,3957.0,3955.7,0.7637]
[1734396359118,0.23166366,3956.9,3955.7,0.7637]
[1734396359313,0.23166366,3956.8,3955.7,0.7637]
[1734396359503,0.37045554,3957.6,3955.7,0.7637]
[1734396359701,0.797,3957.3,3955.7,0.7637]
[1734396360049,4.04034121,3957.1,3955.7,0.7637]
[1734396360239,3.78730658,3957.0,3955.7,0.7637]
[1734396360552,1.46013683,3956.9,3955.7,0.7637]
[1734396360718,0.23178971,3956.8,3955.7,0.7637]
[1734396361042,0.37045554,3956.9,3955.7,0.7637]
[1734396361043,0.23178971,3956.7,3955.7,0.7637]
[1734396361245,0.23182426,3956.6,3955.7,0.7637]
[1734396361462,0.23182426,3956.5,3955.7,0.7637]
[1734396361665,0.23182426,3956.4,3955.7,0.7637]
[1734396361868,0.23182426,3956.3,3955.7,0.7637]
[1734396362161,0.23182426,3956.2,3955.7,0.7637]
[1734396362322,0.23182426,3956.1,3955.7,0.7637]
[1734396362528,0.23182426,3956.0,3955.7,0.7637]
[1734396362760,0.23182426,3955.9,3955.7,0.7637]
[1734396362930,0.23182426,3955.8,3955.7,0.7637]
[1734396363325,7.21060672,3957.1,3955.7,0.7637]
[1734396363326,0.37091881,3956.8,3955.7,0.7637]
[1734396363527,0.23209782,3956.7,3955.7,0.7637]
[1734396363747,1.04034121,3957.1,3955.7,0.7637]
[1734396363748,0.23209782,3956.6,3955.7,0.7637]
[1734396364078,1.04034121,3957.1,3955.7,0.7637]
[1734396364079,0.23209782,3956.5,3955.7,0.7637]
[1734396364280,1.04034121,3957.1,3955.7,0.7637]
[1734396364425,0.23211056,3956.4,3955.7,0.7637]
[1734396364629,1.04034121,3957.5,3955.7,0.7637]
[1734396364865,0.37141593,3957.3,3955.7,0.7637]
[1734396365135,0.60355612,3957.2,3955.7,0.7637]
[1734396365287,0.23214019,3957.1,3955.7,0.7637]
[1734396365449,2.36300672,3957.7,3955.9,0.7562]
[1734396365649,0.8004,3957.7,3955.4,0.7562]
[1734396365971,0.8004,3957.7,3955.6,0.7562]
[1734396366169,0.37141215,3957.6,3955.6,0.7562]
[1734396366393,0.23213259,3957.5,3955.6,0.7562]
[1734396366678,0.60354474,3957.4,3955.6,0.7562]
[1734396366983,1.04034121,3957.6,3955.6,0.7562]
[1734396366984,0.23213259,3957.3,3955.6,0.7562]
[1734396367189,0.23213259,3957.2,3955.6,0.7562]
[1734396367490,0.23213259,3957.1,3955.6,0.7562]
[1734396367784,0.37141215,3957.8,3955.7,0.78147441]
[1734396367785,0.23213259,3957.0,3955.7,0.78147441]
[1734396367984,0.37141215,3957.8,3955.7,0.78147441]
[1734396368143,0.23209797,3957.7,3955.7,0.7562]
[1734396368343,0.8004,3957.1,3955.7,0.7562]
[1734396368541,4.59034121,3956.7,3954.1,0.7562]
[1734396368746,3.55,3956.5,3954.1,0.7562]
[1734396368958,1.46148664,3956.4,3954.1,0.7562]
[1734396369153,0.23209797,3956.3,3954.1,0.7562]
[1734396369358,0.23209797,3956.2,3954.1,0.7562]
[1734396369583,0.23209797,3956.1,3954.1,0.7562]
[1734396369785,4.04034121,3956.5,3954.1,0.7562]
[1734396370000,0.23208894,3956.0,3954.1,0.7562]
[1734396370202,0.23208894,3955.9,3954.1,0.7562]
[1734396370364,0.23208894,3955.8,3954.1,0.78148457]
[1734396370560,0.37134231,3956.6,3954.1,0.78148457]
[1734396370792,0.23213369,3956.5,3954.1,0.78148457]
[1734396370987,1.04034121,3957.2,3954.1,1.07036597]
[1734396371186,0.23216957,3956.4,3954.4,0.55]
[1734396371504,0.23216957,3956.3,3954.7,0.8266]
[1734396371657,0.23216957,3956.2,3954.8,0.55]
[1734396371863,0.37147132,3956.9,3954.9,0.85187895]
[1734396372063,0.23216763,3956.8,3954.9,0.85187895]
[1734396372286,0.23216763,3956.7,3955.1,0.8266]
[1734396372499,0.23216763,3956.6,3955.1,0.8266]
[1734396372700,0.23216763,3956.5,3955.1,0.8266]
[1734396372901,0.23216763,3956.4,3955.1,0.8266]
[1734396373202,0.23216763,3956.3,3955.1,0.8266]
[1734396373406,0.37147132,3957.2,3955.1,0.8266]
[1734396373407,0.23239321,3956.2,3955.1,0.8266]
[1734396373611,1.00189321,3956.1,3955.1,0.8266]
[1734396373905,1.04034121,3955.9,3955.1,0.8266]
[1734396374107,3.79243678,3955.8,3955.1,0.8266]
[1734396374263,1.04034121,3955.9,3955.1,0.8266]
[1734396374463,1.89316613,3955.8,3955.1,0.8266]
[1734396374707,1.46368424,3955.7,3955.1,0.8266]
[1734396375002,0.6044285,3955.6,3955.1,0.8266]
[1734396375306,0.2324725,3955.5,3955.1,0.8266]
[1734396375507,0.2324725,3955.4,3954.7,0.8043]
[1734396375811,0.2324725,3955.3,3954.7,0.8043]
[1734396375996,0.371956,3956.0,3954.8,0.02528667]
[1734396376197,0.23239234,3955.9,3954.9,0.8043]
[1734396376510,0.23239234,3955.8,3955.0,0.8043]
[1734396376664,1.56260672,3956.8,3955.0,0.8043]
[1734396376665,0.371956,3956.7,3955.0,0.8043]
[1734396376864,0.23242328,3956.6,3955.1,0.02527883]
[1734396377108,0.23242328,3956.5,3955.1,0.82957883]
[1734396377266,0.371956,3957.3,3955.3,0.8043]
[1734396377470,0.60443735,3957.2,3955.5,0.8043]
[1734396377670,0.23248135,3957.1,3955.8,0.55]
[1734396377968,0.371956,3957.7,3955.9,0.8043]
[1734396378195,0.23250308,3957.6,3956.1,0.8043]
[1734396378396,0.23250308,3957.5,3956.1,0.8043]
[1734396378670,0.23250308,3957.4,3956.3,0.8043]
[1734396378882,0.23250308,3957.3,3956.5,0.8043]
[1734396379078,0.23247199,3957.2,3956.5,0.8043]
[1734396379418,1.41229721,3958.0,3956.5,0.8043]
[1734396379601,2.75492586,3957.9,3956.5,0.8043]
[1734396379806,0.60440699,3957.8,3956.5,0.8043]
[1734396380167,0.23245099,3957.7,3956.5,0.8043]
[1734396380314,0.371956,3957.9,3956.5,0.8043]
[1734396380315,0.23245099,3957.6,3956.5,0.8043]
[1734396380520,0.23245099,3957.5,3956.5,0.8043]
[1734396380830,2.89386895,3958.6,3955.9,0.0252722]
[1734396380831,0.37186859,3958.3,3956.9,0.8043]
[1734396381121,0.23256745,3958.2,3957.1,0.8043]
[1734396381323,0.23256745,3958.1,3957.1,0.8043]
[1734396381507,0.26175372,3958.7,3957.1,0.8043]
[1734396381824,0.2324113,3958.6,3957.1,0.8043]
[1734396381994,0.2324113,3958.5,3957.1,0.8043]
[1734396382317,0.2324113,3958.4,3957.1,0.8043]
[1734396382504,0.2324113,3958.3,3957.1,0.8043]
[1734396382683,0.2324113,3958.2,3957.1,0.8043]
[1734396382885,0.2324113,3958.1,3957.1,0.8043]
[1734396383080,0.26175372,3958.7,3957.1,0.8043]
[1734396383282,0.23220018,3958.6,3957.1,0.8043]
[1734396383482,0.26175372,3958.7,3957.1,0.8043]
[1734396383483,0.23220018,3958.5,3957.1,0.8043]
[1734396383797,0.26175372,3958.7,3957.1,0.8043]
[1734396384011,0.23209453,3958.6,3957.1,0.8043]
[1734396384212,0.26175372,3958.7,3957.1,0.8043]
[1734396384412,0.23208635,3958.6,3957.1,0.8043]
[1734396384613,0.23208635,3958.5,3957.1,0.8043]
[1734396384813,0.23208635,3958.4,3957.1,0.8043]
[1734396385160,0.23208635,3958.3,3957.1,0.8043]
[1734396385309,0.23208635,3958.2,3957.1,0.8043]
[1734396385646,0.23208635,3958.1,3957.1,0.8043]
[1734396385946,0.23208635,3958.0,3957.1,0.8043]
[1734396386126,0.23208635,3957.9,3957.1,0.8043]
[1734396386327,0.23208635,3957.8,3957.1,0.8043]
[1734396386538,3.3573,3957.1,3955.3,0.8043]
[1734396386831,1.59034121,3955.8,3954.0,0.8043]
[1734396387030,2.64478993,3955.3,3954.0,0.8043]
[1734396387338,2.74794223,3955.2,3954.0,0.8043]
[1734396387540,0.60342451,3955.1,3954.0,0.8043]
[1734396387700,1.08952419,3955.0,3954.0,0.8043]
[1734396388043,1.08954432,3954.9,3952.9,0.12589996]
[1734396388197,1.08949995,3954.8,3952.0,0.02529174]
[1734396388398,0.37133816,3954.9,3952.0,0.02529174]
[1734396388399,0.23208635,3954.7,3952.0,0.02529174]
[1734396388624,0.23208635,3954.6,3952.0,0.30279091]
[1734396388841,0.23208635,3954.5,3952.0,0.30279091]
[1734396389048,0.23208635,3954.4,3952.0,0.30279091]
[1734396389250,0.23208635,3954.3,3952.1,0.55]
[1734396389421,1.41167937,3955.0,3952.1,0.55]
[1734396389741,1.08802216,3954.9,3952.1,0.55]
[1734396389945,0.2312201,3954.8,3952.0,0.42855462]
[1734396390252,0.2312201,3954.7,3952.1,0.34285546]
[1734396390404,0.2312201,3954.6,3952.1,0.34285546]
[1734396390611,0.2312201,3954.5,3952.1,0.34285546]
[1734396390806,0.8302,3954.9,3952.4,0.128685]
[1734396391115,0.23094732,3954.8,3952.8,0.3049]
[1734396391317,0.23094732,3954.8,3953.0,0.3049]
[1734396392033,0.8302,3954.9,3953.0,0.3049]
[1734396392234,0.23081449,3954.8,3953.0,0.3049]
[1734396392440,0.8302,3954.9,3953.0,0.3049]
[1734396392814,0.23071886,3954.8,3953.0,0.3049]
[1734396393008,0.8302,3954.9,3953.0,0.3049]
[1734396394525,0.2305976,3954.8,3953.0,0.3049]
[1734396396641,0.8302,3954.9,3953.0,0.3049]
[1734396396957,0.23040244,3954.8,3953.0,0.3049]
[1734396397354,0.8302,3954.9,3953.0,0.3049]
[1734396398463,0.23030793,3954.8,3953.0,0.3049]
[1734396399715,0.8302,3954.9,3953.0,0.3049]
[1734396399916,0.23024996,3954.8,3953.0,0.3049]
[1734396400384,0.8302,3954.9,3953.0,0.3049]
[1734396400728,0.23017402,3954.8,3953.1,0.02529306]
[1734396400924,0.8302,3954.9,3953.2,0.3049]
[1734396401124,0.8302,3955.5,3953.4,0.3049]
[1734396401375,0.23021071,3955.4,3953.4,0.3049]
[1734396402430,0.55,3955.2,3953.4,0.3049]
[1734396402631,0.8302,3955.0,3953.4,0.3049]
[1734396402835,0.23010836,3954.9,3953.4,0.3049]
[1734396403031,0.23010555,3954.8,3953.4,0.3049]
[1734396403235,0.23010555,3954.7,3953.4,0.3049]
[1734396403434,0.8302,3955.0,3953.4,0.3049]
[1734396403435,0.23010555,3954.9,3953.4,0.3049]
[1734396403673,0.23010555,3954.8,3953.4,0.3049]
[1734396403872,0.23010555,3954.7,3953.4,0.3049]
[1734396404085,0.23010555,3954.6,3953.4,0.3049]
[1734396404252,0.8302,3955.0,3953.4,0.3049]
[1734396404597,0.23019202,3954.9,3953.4,0.3049]
[1734396405146,3.8235,3954.7,3953.0,0.3049]
[1734396405345,0.23019202,3954.6,3953.0,0.3049]
[1734396405564,0.77776902,3954.5,3953.0,0.3049]
[1734396405850,0.55,3954.6,3953.0,0.3049]
[1734396406170,0.8235,3954.5,3952.1,0.3049]
[1734396406343,0.55,3954.4,3952.1,0.3049]
[1734396407442,0.8235,3954.3,3952.1,0.3049]
[1734396407644,0.8235,3954.1,3952.1,0.3049]
[1734396407964,0.8235,3953.9,3952.1,0.3049]
[1734396408142,0.55,3953.8,3952.1,0.3049]
[1734396408544,0.8235,3953.9,3952.1,0.3049]
[1734396409001,0.8235,3953.9,3951.5,0.3049]
[1734396409907,0.8235,3953.9,3951.4,0.1617772]
[1734396410051,0.8235,3953.7,3951.4,0.1617772]
[1734396410242,0.8235,3953.5,3951.4,0.1617772]
[1734396410595,0.8235,3953.5,3951.5,0.3049]
[1734396411486,0.8235,3953.5,3951.4,0.1617772]
[1734396411704,0.55,3953.6,3951.4,0.1617772]
[1734396411705,0.8235,3953.1,3951.4,0.1617772]
[1734396412407,0.8235,3952.9,3951.4,0.1617772]
[1734396413644,0.55,3952.8,3951.4,0.1617772]
[1734396415303,0.91835704,3952.8,3951.4,0.1617772]
[1734396415473,0.8235,3952.7,3951.4,0.1617772]
[1734396415675,0.55,3952.4,3951.4,0.1617772]
[1734396415877,0.36972396,3952.3,3951.4,0.1617772]
[1734396416399,0.8235,3952.0,3949.1,0.3049]
[1734396416576,0.8235,3951.8,3949.1,0.3049]
[1734396416743,0.36972396,3951.7,3949.1,0.3049]
[1734396417108,0.55,3951.4,3948.7,0.3049]
[1734396417392,1.19322396,3951.3,3948.7,0.3049]
[1734396417549,0.60099626,3951.2,3948.7,0.3049]
[1734396417749,0.8235,3951.0,3948.7,0.3049]
[1734396417964,0.2312723,3950.9,3948.7,0.3049]
[1734396418167,0.2312723,3950.8,3948.7,0.3049]
[1734396418508,0.8235,3950.6,3948.6,3.0]
[1734396418807,0.2312723,3950.5,3948.7,0.33049]
[1734396418991,0.23087249,3950.5,3948.4,0.3049]
[1734396419197,0.8213,3950.3,3947.7,0.3049]
[1734396419394,0.23087249,3950.4,3947.7,0.3049]
[1734396419395,0.8213,3950.1,3947.7,0.3049]
[1734396419713,0.23087249,3950.0,3947.7,0.3049]
[1734396420020,0.23087249,3949.9,3947.7,0.3049]
[1734396420338,0.23087249,3949.8,3947.9,0.3049]
[1734396420620,0.23087249,3949.7,3947.9,0.3049]
[1734396420772,0.23087249,3949.6,3947.9,0.3049]
[1734396421111,0.8213,3950.1,3948.1,0.3049]
[1734396421313,0.8213,3950.6,3948.6,0.55]
[1734396421637,0.8213,3951.6,3949.3,0.3049]
[1734396421917,0.2306927,3951.5,3949.9,0.3049]
[1734396422123,0.26191009,3951.9,3950.3,0.3049]
[1734396422329,0.26191009,3951.9,3950.6,0.55]
[1734396422621,0.26191009,3951.9,3950.4,0.02530283]
[1734396422622,0.26191009,3951.9,3950.4,0.55]
[1734396422909,0.26191009,3951.9,3950.7,0.3049]
[1734396423122,0.26191009,3951.9,3950.8,0.55]
[1734396423263,0.26191009,3951.9,3950.9,0.3049]
[1734396423809,0.36906169,3953.0,3950.9,0.3049]
[1734396423970,0.8213,3953.3,3950.9,0.3049]
[1734396423971,0.23095366,3952.9,3950.9,0.3049]
[1734396424201,0.8213,3953.3,3950.9,0.3049]
[1734396424405,0.23098115,3952.8,3950.9,0.3049]
[1734396424605,0.23098115,3952.7,3950.9,0.3049]
[1734396424858,0.23098115,3952.6,3950.9,0.3049]
[1734396425007,0.23098115,3952.5,3950.9,0.3049]
[1734396425211,0.23098115,3952.4,3950.9,0.3049]
[1734396425537,0.23098115,3952.3,3950.9,0.3049]
[1734396425702,0.23098115,3952.2,3950.9,0.3049]
[1734396426047,0.23098115,3952.1,3950.9,0.3049]
[1734396426207,0.23098115,3952.0,3950.9,0.3049]
[1734396426407,0.23098115,3951.9,3950.9,0.3049]
[1734396426616,0.23098115,3951.8,3950.9,0.3049]
[1734396426819,0.8213,3952.9,3950.9,0.3049]
[1734396427024,0.6007273,3952.8,3950.9,0.3049]
[1734396427308,0.23115746,3952.7,3950.9,0.3049]
[1734396427562,0.23115746,3952.6,3950.9,0.3049]
[1734396427707,0.23115746,3952.6,3950.2,0.12710215]
[1734396427708,0.78115746,3952.5,3948.7,0.25]
[1734396428060,1.3713,3952.3,3950.5,0.3049]
[1734396428203,0.60121532,3952.2,3950.5,0.3049]
[1734396428398,0.60121532,3952.1,3950.5,0.3049]
[1734396428662,0.60121532,3952.0,3950.5,0.3049]
[1734396428811,0.60121532,3951.9,3950.5,0.3049]
[1734396429005,0.60121532,3951.8,3950.5,0.3049]
[1734396429348,0.7699,3951.6,3948.8,0.3049]
[1734396429503,0.60121532,3951.5,3949.0,0.3049]
[1734396429704,0.23123666,3951.4,3949.0,0.3049]
[1734396429956,0.23123666,3951.3,3949.0,0.3049]
[1734396430164,0.23123666,3951.2,3949.1,0.02531402]
[1734396430304,2.658,3952.5,3949.1,0.02531402]
[1734396430305,0.23123666,3951.1,3949.3,0.3049]
[1734396430511,0.36997866,3951.9,3949.7,0.3049]
[1734396430706,0.23140476,3951.8,3949.9,0.3049]
[1734396431009,0.23140476,3951.7,3950.1,0.55]
[1734396431203,0.7699,3951.5,3950.2,0.3049]
[1734396431451,0.60165238,3951.4,3950.2,0.3049]
[1734396431767,0.23140476,3951.3,3950.2,0.3049]
[1734396431901,0.23140476,3951.2,3950.2,0.3049]
[1734396432258,0.23140476,3951.1,3950.2,0.3049]
[1734396432548,0.23140476,3951.0,3948.9,3.0]
[1734396432752,1.00130476,3950.9,3949.1,0.3049]
[1734396433074,0.23140476,3950.8,3949.0,0.02531532]
[1734396433217,2.32560336,3952.5,3949.1,0.3049]
[1734396433218,1.37155238,3950.7,3949.1,0.3049]
[1734396433561,0.7699,3950.5,3948.0,0.12978677]
[1734396433704,0.7699,3950.3,3947.8,0.12363279]
[1734396433902,0.60193126,3950.2,3947.9,0.3049]
[1734396434103,0.8176,3950.0,3947.8,0.12363279]
[1734396434352,0.60193126,3949.9,3947.8,0.2049]
[1734396434651,0.55,3949.7,3947.8,0.2049]
[1734396434851,0.60193126,3949.6,3947.8,0.2049]
[1734396435021,3.0,3950.4,3947.5,0.1617772]
[1734396435022,1.41953126,3949.5,3947.5,0.1617772]
[1734396435219,0.60193126,3949.4,3947.5,0.1617772]
[1734396435436,0.60193126,3949.3,3947.5,0.1617772]
[1734396435765,0.60193126,3949.2,3947.5,0.1617772]
[1734396435904,0.60193126,3949.1,3947.5,0.1617772]
[1734396436108,0.60193126,3949.0,3947.5,0.1617772]
[1734396436308,0.23151202,3948.9,3947.5,0.1617772]
[1734396436674,0.23151202,3948.8,3947.6,0.02532724]
[1734396436808,0.23151202,3948.7,3947.6,0.02532533]
[1734396437002,0.37041924,3949.3,3947.6,0.02532533]
[1734396437234,0.23130573,3949.2,3947.6,0.02532533]
[1734396437438,0.23130573,3949.1,3947.7,0.2049]
[1734396437755,0.8176,3949.9,3948.0,0.55]
[1734396437970,0.23131739,3949.8,3948.1,0.02532194]
[1734396438259,0.23131739,3949.7,3948.1,0.02532194]
[1734396438407,0.23131739,3949.6,3948.2,0.2049]
[1734396438607,0.37041924,3950.4,3948.4,3.2049]
[1734396438807,0.23134445,3950.3,3948.7,0.55]
[1734396439057,0.23134445,3950.2,3948.7,0.57531747]
[1734396439207,0.8176,3951.0,3949.0,0.2049]
[1734396439413,0.23135506,3950.9,3949.1,0.57631478]
[1734396439604,0.23135506,3950.8,3949.1,0.551]
[1734396439828,0.23135506,3950.7,3949.2,0.2049]
[1734396440048,0.8176,3951.0,3949.3,0.55]
[1734396440049,0.23135506,3950.6,3949.3,0.55]
[1734396440250,0.23135506,3950.5,3949.2,0.2049]
[1734396440505,0.8176,3951.0,3949.2,0.2049]
[1734396440506,0.23146265,3950.4,3949.2,0.2049]
[1734396440707,0.8176,3951.0,3949.2,0.2049]
[1734396440708,0.23146265,3950.3,3949.2,0.2049]
[1734396441014,0.8176,3951.0,3949.2,0.2049]
[1734396441315,0.60179821,3950.9,3949.3,0.57531697]
[1734396441509,0.23146085,3950.8,3949.3,0.55]
[1734396441710,0.23146085,3950.7,3949.3,0.55]
[1734396442004,0.23146085,3950.6,3949.4,0.23021416]
[1734396442208,0.37033736,3951.5,3949.5,0.55]
[1734396442407,0.60225084,3951.4,3949.5,0.55]
[1734396442651,0.60225084,3951.3,3949.5,0.55]
[1734396442820,0.60225084,3951.2,3949.5,0.55]
[1734396443152,0.60225084,3951.1,3949.4,0.2049]
[1734396443353,0.23191348,3951.0,3949.4,0.2049]
[1734396443664,0.23191348,3950.9,3949.4,0.2049]
[1734396443839,0.8176,3951.6,3949.4,0.2049]
[1734396444022,0.60346482,3951.5,3949.4,0.2049]
[1734396444222,0.60346482,3951.4,3949.4,0.2049]
[1734396444410,0.60346482,3951.3,3949.4,0.2049]
[1734396444610,0.60346482,3951.2,3949.4,0.2049]
[1734396444911,0.60346482,3951.1,3949.4,0.2049]
[1734396445115,0.8176,3951.6,3949.4,0.2049]
[1734396445116,0.60346482,3951.0,3949.4,0.2049]
[1734396445468,0.8176,3950.8,3949.4,0.2049]
[1734396445670,0.0429,3948.7,3947.3,0.02532007]
[1734396446540,0.0429,3948.7,3947.5,0.29020459]
[1734396446738,0.0429,3948.7,3947.9,0.1290532]
[1734396447265,0.0429,3948.7,3948.0,0.55]
[1734396447687,0.0429,3948.7,3948.1,0.02532211]
[1734396447978,1.18894692,3951.0,3948.2,0.55]
[1734396448234,0.2320778,3950.9,3948.6,0.55]
[1734396448413,0.2320778,3950.8,3948.7,0.02531542]
[1734396448698,0.2320778,3950.7,3948.7,0.02531542]
[1734396448843,0.2320778,3950.6,3948.7,0.02531542]
[1734396449047,0.2320778,3950.5,3948.7,0.02531542]
[1734396449289,0.2320778,3950.4,3948.7,0.02531542]
[1734396449600,0.8176,3951.0,3948.9,0.55]
[1734396449778,0.23211328,3950.9,3949.0,0.0253152]
[1734396450088,0.23211328,3950.8,3949.0,0.0253152]
[1734396450259,0.23211328,3950.7,3949.0,0.0253152]
[1734396450445,0.8176,3951.0,3949.0,0.0253152]
[1734396450648,0.23211149,3950.9,3949.1,0.55]
[1734396450876,0.23211149,3950.8,3949.1,0.55]
[1734396451187,0.23211149,3950.7,3949.0,0.55]
[1734396451395,0.23211149,3950.6,3949.0,0.55]
[1734396451578,0.23211149,3950.5,3948.0,0.02531545]
[1734396451900,0.23211149,3950.4,3948.0,0.57531545]
[1734396452188,0.8176,3951.0,3948.0,0.57531545]
[1734396452189,0.23211149,3950.3,3948.0,0.57531545]
[1734396452346,0.23211149,3950.2,3948.0,0.57531545]
[1734396452542,1.18897839,3951.0,3948.0,0.57531545]
[1734396452781,0.23213313,3950.9,3948.0,0.57531545]
[1734396452962,0.23213313,3950.8,3948.2,0.55]
[1734396453177,0.8176,3951.5,3948.3,0.02531262]
[1734396453344,0.23216965,3951.4,3948.3,0.02531262]
[1734396453548,0.60354804,3951.3,3948.6,0.55]
[1734396453852,0.8176,3951.1,3948.1,0.4331203]
[1734396454174,0.8176,3950.9,3947.9,0.12683432]
[1734396454352,0.8176,3950.9,3947.6,0.02532124]
[1734396454353,0.55,3950.5,3947.6,0.02532124]
[1734396454549,0.60354804,3950.4,3947.6,0.02532124]
[1734396454848,0.23216965,3950.3,3947.6,0.02532124]
[1734396455190,0.23216965,3950.2,3947.6,0.02532124]
[1734396455404,0.23216965,3950.1,3948.3,0.12897003]
[1734396455562,0.8176,3950.7,3948.4,0.0253184]
[1734396455815,0.2324241,3950.6,3948.4,0.55]
[1734396456018,0.2324241,3950.5,3948.4,0.55]
[1734396456200,0.2324241,3950.4,3948.4,0.55]
[1734396456403,0.2324241,3950.3,3948.4,0.55]
[1734396456746,0.2324241,3950.2,3948.8,3.0]
[1734396456959,0.2324241,3950.1,3948.8,3.3]
[1734396457245,0.2324241,3950.0,3948.8,3.3]
[1734396457457,0.2324241,3949.9,3948.9,0.55]
[1734396457749,0.37137839,3950.5,3948.9,0.55]
[1734396457932,0.8176,3950.7,3949.0,0.02531714]
[1734396457933,0.23262767,3950.4,3949.0,0.02531714]
[1734396458132,0.23262767,3950.3,3948.9,0.55]
[1734396458439,0.23262767,3950.2,3948.9,0.55]
[1734396458673,0.23262767,3950.1,3949.0,0.02531714]
[1734396458799,0.8176,3950.7,3948.3,0.12538672]
[1734396458800,0.8176,3950.7,3949.4,0.55]
[1734396459001,0.2326357,3950.6,3949.5,0.38031337]
[1734396459245,0.2326357,3950.5,3949.4,0.55]
[1734396459565,0.37137839,3951.2,3949.4,0.55]
[1734396459726,0.23271757,3951.1,3949.4,0.55]
[1734396459928,0.23271757,3951.0,3949.4,0.55]
[1734396460128,0.8176,3951.3,3949.4,0.55]
[1734396460327,0.60513883,3951.2,3949.4,0.55]
[1734396460652,0.8176,3951.3,3949.4,0.55]
[1734396460827,0.60512169,3951.2,3949.4,0.55]
[1734396461028,0.23273911,3951.1,3949.4,3.55]
[1734396461232,0.23273911,3951.0,3949.6,0.55]
[1734396461416,0.23273911,3950.9,3949.6,0.55]
[1734396461620,0.23273911,3950.8,3949.6,0.55]
[1734396461849,0.23273911,3950.7,3949.5,0.55]
[1734396462060,0.8176,3951.3,3949.5,0.55]
[1734396462235,0.23278417,3951.2,3949.5,0.55]
[1734396462561,0.23278417,3951.1,3949.5,0.55]
[1734396462867,7.22060672,3951.9,3949.5,0.55]
[1734396462868,0.796,3950.9,3949.5,0.55]
[1734396463164,0.23278417,3950.8,3949.5,0.55]
[1734396463348,1.16845583,3950.9,3948.2,3.1250515]
[1734396463349,0.23278417,3950.7,3948.8,0.12512229]
[1734396463661,0.23278417,3950.6,3948.9,0.55]
[1734396463962,0.23278417,3950.5,3948.9,0.55]
[1734396464134,0.23278417,3950.4,3948.9,0.55]
[1734396464334,0.23278417,3950.3,3948.9,0.55]
[1734396464548,0.796,3950.9,3948.9,0.55]
[1734396464760,0.23278002,3950.8,3948.9,0.55]
[1734396464919,0.23278002,3950.7,3948.9,0.55]
[1734396465260,0.23278002,3950.6,3949.0,0.02531699]
[1734396465472,0.796,3950.9,3949.0,0.02531699]
[1734396465624,0.23290535,3950.8,3949.2,3.0]
[1734396465940,0.23290535,3950.8,3949.1,0.55]
[1734396465941,0.23290535,3950.7,3949.1,0.55]
[1734396466262,0.7806,3950.5,3948.1,1.0450814]
[1734396466468,0.23290535,3950.4,3948.2,0.1250515]
[1734396466762,0.23302142,3950.3,3948.2,0.1250515]
[1734396466959,0.23302142,3950.2,3948.2,0.1250515]
[1734396467138,0.23302142,3950.1,3948.2,0.1250515]
[1734396467343,0.23302142,3950.0,3948.2,0.1250515]
[1734396467562,0.23302142,3949.9,3948.3,0.55]
[1734396467847,0.37283428,3950.4,3948.7,0.55]
[1734396468064,0.23326752,3950.3,3948.5,0.55]
[1734396468271,0.23326752,3950.2,3949.0,0.55]
[1734396468565,0.23326752,3950.1,3949.0,0.55]
[1734396468722,0.23326752,3950.0,3949.0,0.55]
[1734396468926,0.7806,3950.5,3949.0,0.55]
[1734396469124,0.23327111,3950.4,3949.0,0.55]
[1734396469367,0.7806,3950.8,3948.8,1.5950814]
[1734396469669,0.7806,3950.8,3949.0,0.55]
[1734396469875,0.7806,3950.8,3949.1,0.02531237]
[1734396469876,0.23323073,3950.7,3949.1,0.02531237]
[1734396470176,0.7806,3950.8,3949.1,0.02531237]
[1734396470326,0.2331907,3950.7,3949.2,0.55]
[1734396470666,0.2331974,3950.6,3949.0,4.0450814]
[1734396470822,0.7806,3950.8,3949.1,5.23039062]
[1734396471020,0.23321856,3950.7,3949.1,1.18530922]
[1734396471253,0.23321856,3950.6,3949.1,1.18530922]
[1734396471474,0.7806,3950.8,3949.1,2.23039062]
[1734396471626,0.23320001,3950.7,3949.1,2.23039062]
[1734396471830,0.23320001,3950.6,3949.3,0.55]
[1734396472021,0.23320001,3950.5,3949.2,0.74142831]
[1734396472236,0.23320001,3950.4,3949.2,0.74142831]
[1734396472475,0.23317657,3950.3,3948.9,1.0450814]
[1734396472626,0.7806,3950.8,3949.0,1.0450814]
[1734396472826,0.23318599,3950.7,3949.0,1.0450814]
[1734396473139,0.23318989,3950.6,3949.2,0.55]
[1734396473340,0.7806,3950.8,3949.2,0.55]
[1734396473675,0.7806,3950.8,3949.1,4.0450814]
[1734396473676,0.23316071,3950.7,3949.4,0.55]
[1734396473824,0.7806,3950.8,3949.4,0.55]
[1734396474029,0.23316821,3950.7,3949.4,0.55]
[1734396474225,0.7806,3950.8,3949.4,0.55]
[1734396474478,0.23315375,3950.7,3949.4,0.55]
[1734396474645,0.7806,3950.8,3949.6,0.55]
[1734396474827,0.23315295,3950.7,3949.6,0.55]
[1734396475029,0.7806,3950.8,3949.6,0.55]
[1734396475737,0.23313367,3950.7,3949.6,0.55]
[1734396476053,0.7806,3950.8,3949.6,0.55]
[1734396476424,0.7806,3950.8,3949.8,0.55]
[1734396477266,0.23321715,3950.7,3949.6,0.55]
[1734396477457,0.7806,3950.8,3949.6,0.55]
[1734396478065,0.23320803,3950.7,3949.6,0.55]
[1734396478247,0.7806,3950.8,3949.6,0.55]
[1734396478460,0.7806,3950.8,3949.8,0.55]
[1734396478654,0.23317922,3950.7,3949.8,0.55]
[1734396478850,0.23317922,3950.7,3949.6,0.55]
[1734396479162,0.7806,3950.8,3949.6,0.55]
[1734396480859,0.23319374,3950.7,3949.6,0.55]
[1734396481063,0.7806,3950.8,3949.6,0.55]
[1734396481413,0.23320296,3950.7,3949.6,0.7460318]
[1734396481620,0.23320296,3950.6,3949.1,1.0450814]
[1734396481816,0.7806,3950.8,3949.0,3.12795625]